bitfinex-derivatives/quotes_BTCF0:USTF0_20250915
["timestamp","ask_amount","ask_price","bid_price","bid_amount"]
[1757944584183,0.4557623,114850.0,114840.0,0.38506]
[1757944584786,0.4557623,114850.0,114840.0,0.38406]
[1757944585591,0.4567623,114850.0,114840.0,0.38406]
[1757944586099,0.11274097,114850.0,114840.0,0.38406]
[1757944586293,0.4567623,114850.0,114840.0,0.38406]
[1757944587799,0.4577623,114850.0,114840.0,0.38406]
[1757944588001,0.4577623,114850.0,114840.0,0.02326]
[1757944588498,1.3091623,114850.0,114840.0,0.02326]
[1757944589996,0.03621,114840.0,114830.0,0.38321]
[1757944590997,0.01291,114830.0,114820.0,0.40309771]
[1757944591200,0.38023133,114830.0,114820.0,0.40309771]
[1757944591395,0.38023133,114830.0,114820.0,0.04229771]
[1757944591590,0.38023133,114830.0,114820.0,0.40309771]
[1757944591997,1.23123133,114830.0,114820.0,0.40309771]
[1757944592591,1.23123133,114830.0,114820.0,0.40409771]
[1757944592795,0.88713,114830.0,114820.0,0.40409771]
[1757944593098,0.88713,114830.0,114820.0,0.40509771]
[1757944593099,1.23115133,114830.0,114820.0,0.40509771]
[1757944593602,1.23115133,114830.0,114820.0,0.38521]
[1757944594202,1.23115133,114830.0,114820.0,0.02441]
[1757944594504,1.23115133,114830.0,114820.0,0.002]
[1757944594697,1.23115133,114830.0,114820.0,0.02441]
[1757944595502,1.23103133,114830.0,114820.0,0.02441]
[1757944598701,1.23103133,114830.0,114820.0,0.002]
[1757944598908,1.50348736,114830.0,114820.0,0.002]
[1757944599207,1.50300736,114830.0,114820.0,0.002]
[1757944599404,1.25300736,114830.0,114820.0,0.002]
[1757944599610,1.50300736,114830.0,114820.0,0.002]
[1757944600302,1.52046641,114830.0,114820.0,0.002]
[1757944600898,1.88126641,114830.0,114820.0,0.002]
[1757944601605,1.88102641,114830.0,114820.0,0.002]
[1757944601804,0.43692508,114830.0,114820.0,0.02441]
[1757944602003,0.07612508,114830.0,114820.0,0.39828]
[1757944602204,0.07612508,114830.0,114820.0,0.39728]
[1757944602509,0.42014641,114830.0,114820.0,0.39828]
[1757944602802,0.42314641,114830.0,114820.0,0.38421]
[1757944603210,0.42414641,114830.0,114820.0,0.38321]
[1757944603407,1.27402641,114830.0,114820.0,0.38321]
[1757944604404,1.27102641,114830.0,114820.0,0.38321]
[1757944604608,1.27202641,114830.0,114820.0,0.38321]
[1757944605107,0.42214641,114830.0,114820.0,0.38321]
[1757944605305,1.27178641,114830.0,114820.0,0.38321]
[1757944605811,1.27178641,114830.0,114820.0,0.99030133]
[1757944605812,0.91485508,114830.0,114820.0,0.99030133]
[1757944606006,0.91485508,114830.0,114820.0,0.64628]
[1757944609915,0.06521508,114830.0,114820.0,0.64628]
[1757944610114,0.91429508,114830.0,114820.0,0.64628]
[1757944611713,0.91429508,114830.0,114820.0,0.99043986]
[1757944611916,1.25845494,114830.0,114820.0,0.99043986]
[1757944612209,1.27136494,114830.0,114820.0,0.27241]
[1757944612417,1.27136494,114830.0,114820.0,0.63321]
[1757944612819,0.92720508,114830.0,114820.0,0.63321]
[1757944613116,1.27136494,114830.0,114820.0,0.63321]
[1757944613304,1.27136494,114830.0,114820.0,0.97736986]
[1757944615319,2.25748503,114830.0,114810.0,0.3608]
[1757944615615,0.03628,114810.0,114800.0,0.40303927]
[1757944615817,0.90713603,114810.0,114800.0,0.74719913]
[1757944616117,1.25129589,114810.0,114800.0,0.74719913]
[1757944616618,1.25129589,114810.0,114800.0,0.76021913]
[1757944616812,0.05873603,114810.0,114800.0,1.10437899]
[1757944617013,0.04571603,114810.0,114800.0,1.10437899]
[1757944617710,0.11437245,114810.0,114800.0,1.10437899]
[1757944618809,0.11437245,114810.0,114800.0,1.10537899]
[1757944619115,0.47213231,114810.0,114800.0,0.38395]
[1757944619414,0.47213231,114810.0,114800.0,0.38295]
[1757944619415,0.8474524,114810.0,114800.0,0.38295]
[1757944619613,0.50329254,114810.0,114800.0,0.38295]
[1757944619815,0.50329254,114810.0,114800.0,0.38395]
[1757944620314,0.55003289,114810.0,114800.0,0.38395]
[1757944620519,0.50329254,114810.0,114800.0,0.38295]
[1757944620714,0.15913268,114810.0,114800.0,0.02215]
[1757944620909,0.50329254,114810.0,114800.0,0.02215]
[1757944621215,0.50329254,114810.0,114790.0,0.70495986]
[1757944621216,0.03463,114800.0,114790.0,0.38223]
[1757944621413,1.60203947,114800.0,114790.0,0.38223]
[1757944621613,0.93617578,114800.0,114790.0,0.38223]
[1757944621813,1.6244955,114800.0,114790.0,0.38223]
[1757944622517,1.6244955,114800.0,114790.0,0.38323]
[1757944622913,1.6244955,114800.0,114790.0,0.38423]
[1757944623415,1.59316575,114800.0,114790.0,0.38423]
[1757944623622,1.6017921,114800.0,114790.0,0.38423]
[1757944625516,1.63312185,114800.0,114790.0,0.3628]
[1757944625823,1.63312185,114800.0,114790.0,0.38423]
[1757944626323,1.6017921,114800.0,114790.0,0.38423]
[1757944629117,2.58808171,114800.0,114790.0,0.002]
[1757944629323,0.03463,114780.0,114770.0,0.38223]
[1757944629522,1.59232575,114780.0,114770.0,0.38223]
[1757944629824,1.59232081,114780.0,114770.0,0.38223]
[1757944630221,0.74540081,114780.0,114770.0,0.38223]
[1757944630425,1.59224081,114780.0,114770.0,0.38223]
[1757944630630,0.74540081,114780.0,114770.0,0.38223]
[1757944630818,1.59224081,114780.0,114770.0,0.02143]
[1757944631215,0.0136,114770.0,114760.0,0.3608]
[1757944631422,0.37878986,114770.0,114760.0,0.38223]
[1757944631726,0.37778986,114770.0,114760.0,0.72638986]
[1757944631921,0.44759896,114770.0,114760.0,0.72638986]
[1757944632127,1.29423896,114770.0,114760.0,0.73940986]
[1757944632327,0.44759896,114770.0,114760.0,0.74240986]
[1757944633130,0.44759896,114770.0,114760.0,0.74440986]
[1757944634928,0.44759896,114770.0,114760.0,0.38723]
[1757944635130,0.44759896,114770.0,114760.0,0.73138986]
[1757944635826,0.9497991,114770.0,114760.0,0.74440986]
[1757944636026,1.29395896,114770.0,114760.0,0.38723]
[1757944636224,1.29395896,114770.0,114760.0,0.73138986]
[1757944636818,1.29387896,114770.0,114760.0,0.73138986]
[1757944637729,1.29375896,114770.0,114760.0,0.38723]
[1757944638229,1.29375896,114770.0,114760.0,0.73138986]
[1757944638629,1.29375896,114770.0,114760.0,0.38723]
[1757944640629,1.31616946,114770.0,114760.0,0.38723]
[1757944641629,0.47000946,114770.0,114760.0,0.38723]
[1757944641933,0.9590096,114770.0,114760.0,1.08856972]
[1757944642132,0.9590096,114770.0,114760.0,0.74440986]
[1757944642735,1.30316946,114770.0,114760.0,0.74440986]
[1757944643033,0.9590096,114770.0,114760.0,0.74440986]
[1757944643332,0.45740946,114770.0,114760.0,0.74440986]
[1757944645330,0.0922196,114770.0,114760.0,1.08856972]
[1757944645635,0.0698091,114770.0,114760.0,1.08856972]
[1757944645830,0.02103,114770.0,114760.0,1.08856972]
[1757944646031,0.09243472,114770.0,114760.0,1.08856972]
[1757944646226,0.09243472,114770.0,114760.0,0.74440986]
[1757944646429,0.10541472,114770.0,114760.0,0.74440986]
[1757944646631,0.44957458,114770.0,114760.0,0.74440986]
[1757944647234,0.44957458,114770.0,114760.0,0.73138986]
[1757944647429,0.79373444,114770.0,114760.0,0.38723]
[1757944647734,0.81619893,114770.0,114760.0,0.38723]
[1757944647936,0.47203907,114770.0,114760.0,0.38723]
[1757944649331,0.81619893,114770.0,114760.0,0.3658]
[1757944649538,1.06619893,114770.0,114760.0,0.005]
[1757944650435,1.06619893,114770.0,114760.0,0.02439]
[1757944650639,1.91083893,114770.0,114760.0,0.02339]
[1757944653238,1.06619893,114770.0,114760.0,0.02339]
[1757944653438,1.91079893,114770.0,114760.0,0.02339]
[1757944654339,1.06619893,114770.0,114760.0,0.02339]
[1757944654836,0.12787921,114770.0,114760.0,0.02339]
[1757944655143,1.31623907,114770.0,114760.0,0.38065986]
[1757944655537,0.11489921,114770.0,114760.0,1.33561972]
[1757944656647,0.45905907,114770.0,114760.0,1.33561972]
[1757944656850,0.47203907,114770.0,114760.0,0.97834986]
[1757944658048,0.47203907,114770.0,114760.0,0.63419]
[1757944658354,0.47203907,114770.0,114760.0,0.97834986]
[1757944658749,0.47203907,114770.0,114760.0,0.38419]
[1757944658952,0.12787921,114770.0,114760.0,0.38419]
[1757944659151,0.47203907,114770.0,114760.0,0.72834986]
[1757944659353,0.12787921,114770.0,114760.0,0.72834986]
[1757944659659,0.47203907,114770.0,114760.0,0.72834986]
[1757944660153,0.12787921,114770.0,114760.0,0.72834986]
[1757944660354,0.47203907,114770.0,114760.0,0.72834986]
[1757944661254,0.47208119,114770.0,114760.0,0.72834986]
[1757944661449,0.47208119,114770.0,114760.0,1.07250972]
[1757944661657,1.31568119,114770.0,114760.0,0.74145986]
[1757944661953,1.31568119,114770.0,114760.0,0.3973]
[1757944662254,1.31568119,114770.0,114760.0,0.74145986]
[1757944665858,0.11494133,114770.0,114760.0,1.08561972]
[1757944666648,0.47208119,114770.0,114760.0,0.74145986]
[1757944667754,0.47208119,114770.0,114760.0,0.38419]
[1757944668057,1.06624105,114770.0,114760.0,0.002]
[1757944668452,1.45830581,114770.0,114760.0,0.002]
[1757944668646,1.86684293,114770.0,114760.0,0.002]
[1757944668856,1.86684293,114770.0,114740.0,0.38112267]
[1757944668857,0.03413,114750.0,114740.0,0.38112267]
[1757944669053,1.58755633,114750.0,114740.0,0.02032267]
[1757944669253,0.03413,114740.0,114730.0,0.38219]
[1757944669451,0.74495633,114740.0,114730.0,0.38219]
[1757944669858,0.74495633,114740.0,114730.0,0.02139]
[1757944670359,0.74395633,114740.0,114730.0,0.02139]
[1757944670761,0.74295633,114740.0,114730.0,0.02139]
[1757944671260,1.58531633,114740.0,114730.0,0.02239]
[1757944671459,1.58531633,114740.0,114730.0,0.02339]
[1757944671859,1.24177536,114740.0,114730.0,0.02339]
[1757944673161,1.24181536,114740.0,114730.0,0.02339]
[1757944675358,0.39941536,114740.0,114730.0,0.02339]
[1757944675665,0.39941536,114740.0,114730.0,0.74255875]
[1757944675666,0.88565661,114740.0,114730.0,0.74255875]
[1757944675867,0.89963661,114740.0,114730.0,0.39778]
[1757944676064,1.24441536,114740.0,114730.0,0.38419]
[1757944676666,1.25294806,114740.0,114730.0,0.38419]
[1757944678961,1.25294806,114740.0,114730.0,0.02339]
[1757944679767,1.25294806,114740.0,114730.0,0.002]
[1757944680161,1.25258806,114740.0,114730.0,0.38472]
[1757944680361,1.23008145,114740.0,114730.0,0.38472]
[1757944682070,0.38844145,114740.0,114730.0,0.38472]
[1757944682268,1.22984145,114740.0,114730.0,0.38472]
[1757944687276,1.8635421,114740.0,114730.0,0.002]
[1757944687867,1.86354153,114740.0,114730.0,0.002]
[1757944688774,1.86454153,114740.0,114730.0,0.001]
[1757944689475,1.51976278,114740.0,114730.0,0.001]
[1757944689671,1.86454153,114740.0,114730.0,0.001]
[1757944689873,1.86454153,114740.0,114710.0,0.3608]
[1757944690175,0.38049875,114720.0,114710.0,0.38272]
[1757944690376,1.22109875,114720.0,114710.0,0.38272]
[1757944690875,1.28993452,114720.0,114710.0,0.38272]
[1757944691275,1.28993452,114720.0,114710.0,0.38372]
[1757944694879,0.44933452,114720.0,114710.0,0.38372]
[1757944695083,1.28949452,114720.0,114710.0,0.38372]
[1757944695873,0.93073577,114720.0,114710.0,0.99161875]
[1757944697467,0.95370888,114720.0,114710.0,0.99161875]
[1757944697876,0.11354888,114720.0,114710.0,0.99161875]
[1757944698779,0.11354888,114720.0,114710.0,0.64684]
[1757944699080,0.11354888,114720.0,114710.0,0.99161875]
[1757944699775,0.11354888,114720.0,114710.0,0.64684]
[1757944699981,0.11354888,114720.0,114710.0,0.99161875]
[1757944700281,0.47230763,114720.0,114710.0,0.38372]
[1757944701280,1.06708638,114720.0,114710.0,0.38372]
[1757944701477,1.06708638,114720.0,114710.0,0.3618]
[1757944703477,0.72230763,114720.0,114710.0,0.3618]
[1757944703676,1.06708638,114720.0,114710.0,0.3618]
[1757944704980,1.09838341,114720.0,114710.0,0.3618]
[1757944705181,1.09838341,114720.0,114710.0,0.001]
[1757944705182,1.45918341,114720.0,114710.0,0.001]
[1757944705384,1.50592376,114720.0,114710.0,0.001]
[1757944706084,2.34508376,114720.0,114710.0,0.001]
[1757944706483,2.34608376,114720.0,114710.0,0.001]
[1757944707284,2.29934341,114720.0,114710.0,0.001]
[1757944707782,2.29934341,114720.0,114690.0,0.3608]
[1757944707783,0.03643,114700.0,114690.0,0.38368]
[1757944707982,1.24322186,114700.0,114690.0,0.38368]
[1757944708379,0.40418186,114700.0,114690.0,0.38368]
[1757944708585,1.24318186,114700.0,114690.0,0.38368]
[1757944709081,1.24318186,114700.0,114690.0,0.38568]
[1757944709985,1.24318186,114700.0,114690.0,0.38668]
[1757944711483,1.24318186,114700.0,114690.0,0.3638]
[1757944711680,1.24318186,114700.0,114690.0,0.3618]
[1757944711880,1.24318186,114700.0,114690.0,0.38468]
[1757944712586,1.24418186,114700.0,114690.0,0.38368]
[1757944713987,1.24418186,114700.0,114690.0,0.3608]
[1757944714186,0.01337,114690.0,114680.0,1.8608]
[1757944714488,1.21964186,114690.0,114680.0,1.8608]
[1757944714884,0.38112186,114690.0,114680.0,1.8608]
[1757944715084,0.87482311,114690.0,114680.0,1.8608]
[1757944715489,0.03634311,114690.0,114680.0,1.8618]
[1757944715691,0.87478311,114690.0,114680.0,1.8618]
[1757944716390,1.21956186,114690.0,114680.0,1.8618]
[1757944718593,0.87478311,114690.0,114680.0,1.8618]
[1757944718892,1.21956186,114690.0,114680.0,1.8618]
[1757944719288,1.57283263,114690.0,114680.0,1.8618]
[1757944719488,1.57283263,114690.0,114680.0,1.501]
[1757944719796,1.57383263,114690.0,114680.0,1.501]
[1757944720391,1.22905388,114690.0,114680.0,1.501]
[1757944720897,1.22905388,114690.0,114680.0,1.8608]
[1757944721295,1.22905388,114690.0,114680.0,1.5]
[1757944723499,1.22905388,114690.0,114680.0,1.8608]
[1757944723795,1.22905388,114690.0,114680.0,1.5]
[1757944725098,0.39061388,114690.0,114680.0,1.5]
[1757944725288,0.02397311,114690.0,114680.0,3.30718875]
[1757944725495,0.001,114690.0,114680.0,3.30718875]
[1757944726602,0.001,114690.0,114680.0,3.39435965]
[1757944727101,0.001,114690.0,114680.0,3.30718875]
[1757944727297,0.0001,114700.0,114690.0,0.03677]
[1757944727502,0.46928,114710.0,114700.0,0.03677]
[1757944727699,0.11826276,114720.0,114710.0,0.03677]
[1757944727904,0.14104309,114720.0,114710.0,0.74234875]
[1757944728104,0.08632352,114720.0,114710.0,0.74234875]
[1757944728307,0.08632352,114720.0,114710.0,0.99234875]
[1757944728507,0.06883577,114720.0,114710.0,0.99234875]
[1757944728806,0.0001,114730.0,114720.0,0.03677]
[1757944729011,0.02306,114730.0,114720.0,0.74234875]
[1757944729206,0.09439187,114730.0,114720.0,0.74234875]
[1757944729506,0.45254062,114730.0,114720.0,0.39757]
[1757944729702,1.07020075,114730.0,114710.0,0.3608]
[1757944729909,1.5633075,114720.0,114710.0,0.3608]
[1757944730107,1.58618888,114720.0,114710.0,0.3608]
[1757944730906,1.58618888,114720.0,114710.0,0.38368]
[1757944731108,1.24141013,114720.0,114710.0,0.38368]
[1757944732113,1.24341013,114720.0,114710.0,0.38368]
[1757944732714,1.24741013,114720.0,114710.0,0.38368]
[1757944733816,1.59242496,114720.0,114710.0,0.38368]
[1757944735317,0.75510496,114720.0,114710.0,0.38368]
[1757944735514,0.05194138,114720.0,114710.0,0.99213679]
[1757944735814,0.006,114720.0,114710.0,0.99213679]
[1757944736210,0.006,114720.0,114710.0,0.64724]
[1757944736412,0.006,114720.0,114710.0,0.99213679]
[1757944737209,0.004,114720.0,114710.0,0.99213679]
[1757944737916,0.37136679,114720.0,114710.0,0.64724]
[1757944738116,0.37136679,114720.0,114710.0,0.99213679]
[1757944738313,0.004,114720.0,114710.0,0.99213679]
[1757944738711,0.004,114720.0,114710.0,1.82869679]
[1757944739620,0.02647,114720.0,114710.0,1.82857679]
[1757944741018,0.02547,114720.0,114710.0,1.82857679]
[1757944741919,0.37036679,114720.0,114710.0,1.82837679]
[1757944742819,0.02547,114720.0,114710.0,1.82837679]
[1757944743124,0.02547,114720.0,114710.0,0.99213679]
[1757944743326,0.02547,114720.0,114710.0,1.82821679]
[1757944743521,0.37036679,114720.0,114710.0,1.82821679]
[1757944744228,0.37036679,114720.0,114710.0,0.99213679]
[1757944744526,0.38369679,114720.0,114710.0,0.72857679]
[1757944745025,0.38369679,114720.0,114710.0,0.38368]
[1757944745227,0.0388,114720.0,114710.0,0.72857679]
[1757944745420,0.02547,114720.0,114710.0,0.74155679]
[1757944745819,0.003,114720.0,114710.0,1.33645358]
[1757944747425,0.001,114720.0,114710.0,1.33645358]
[1757944747624,0.02257,114730.0,114720.0,0.03591]
[1757944747823,0.38069679,114730.0,114720.0,1.23239]
[1757944748126,0.38069679,114730.0,114720.0,0.72862679]
[1757944748923,0.38169679,114730.0,114720.0,0.72862679]
[1757944749123,0.001,114730.0,114720.0,1.08650358]
[1757944750524,0.004,114730.0,114720.0,1.08650358]
[1757944750724,0.003,114730.0,114720.0,1.08650358]
[1757944750930,0.005,114730.0,114720.0,1.08650358]
[1757944751228,0.004,114730.0,114720.0,1.08650358]
[1757944751428,0.004,114730.0,114720.0,1.92186358]
[1757944751927,0.002,114730.0,114720.0,1.92186358]
[1757944752130,0.003,114730.0,114720.0,1.92186358]
[1757944753534,0.003,114730.0,114720.0,1.92166358]
[1757944753831,0.34789679,114730.0,114720.0,1.92166358]
[1757944754032,0.34789679,114730.0,114720.0,1.57676679]
[1757944754531,0.37036679,114730.0,114720.0,0.74160679]
[1757944754832,0.63369679,114730.0,114720.0,0.38373]
[1757944755022,0.65663726,114730.0,114720.0,0.72862679]
[1757944756233,0.65663726,114730.0,114720.0,0.38373]
[1757944756430,0.65663726,114730.0,114720.0,0.72862679]
[1757944756828,0.65663726,114730.0,114720.0,0.38373]
[1757944757034,0.65663726,114730.0,114720.0,0.72862679]
[1757944757529,0.31174047,114730.0,114720.0,0.72862679]
[1757944757730,0.39330726,114730.0,114720.0,1.08650358]
[1757944757935,0.04841047,114730.0,114720.0,1.08650358]
[1757944758232,0.39330726,114730.0,114720.0,1.08650358]
[1757944758425,0.39330726,114730.0,114720.0,0.74160679]
[1757944758627,0.40663726,114730.0,114720.0,0.74160679]
[1757944760134,0.02594047,114730.0,114720.0,1.08650358]
[1757944760338,0.02594047,114730.0,114720.0,1.33650358]
[1757944760536,0.003,114730.0,114720.0,1.68140037]
[1757944760734,0.003,114730.0,114720.0,1.33650358]
[1757944760939,0.003,114730.0,114720.0,2.17106358]
[1757944761536,0.003,114730.0,114720.0,2.51596037]
[1757944762037,0.0001,114740.0,114730.0,0.01298]
[1757944762341,0.01794752,114750.0,114740.0,0.03591]
[1757944762636,0.01784752,114750.0,114740.0,1.92090358]
[1757944762840,0.01784752,114750.0,114740.0,2.17090358]
[1757944763541,0.01784752,114750.0,114740.0,2.17086358]
[1757944764936,0.0001,114760.0,114750.0,0.01298]
[1757944765139,0.04542426,114760.0,114750.0,0.74160679]
[1757944765341,0.39032105,114760.0,114750.0,1.23083]
[1757944765537,0.39032105,114760.0,114750.0,1.57572679]
[1757944766042,0.04542426,114760.0,114750.0,1.57572679]
[1757944766245,0.39032105,114760.0,114750.0,1.57572679]
[1757944766541,0.04842426,114760.0,114750.0,1.57572679]
[1757944766742,0.05142426,114760.0,114750.0,1.57572679]
[1757944767241,0.05142426,114760.0,114750.0,1.57568679]
[1757944767443,0.05142426,114760.0,114750.0,0.74160679]
[1757944767644,0.39632105,114760.0,114750.0,1.57556679]
[1757944767942,0.05142426,114760.0,114750.0,1.57552679]
[1757944768140,0.39632105,114760.0,114750.0,1.57548679]
[1757944769338,0.39632105,114760.0,114750.0,0.74160679]
[1757944769544,0.39632105,114760.0,114750.0,1.57544679]
[1757944770044,0.39632105,114760.0,114750.0,0.74160679]
[1757944770244,0.39632105,114760.0,114750.0,1.57532679]
[1757944770442,0.05142426,114760.0,114750.0,1.57532679]
[1757944770645,0.39632105,114760.0,114750.0,1.57532679]
[1757944771744,0.05142426,114760.0,114750.0,1.57532679]
[1757944771938,0.05142426,114760.0,114750.0,1.23023]
[1757944772134,0.39632105,114760.0,114750.0,1.57512679]
[1757944772444,0.05142426,114760.0,114750.0,1.57508679]
[1757944772643,0.39632105,114760.0,114750.0,1.57508679]
[1757944773334,0.05142426,114760.0,114750.0,1.57508679]
[1757944773539,0.39632105,114760.0,114750.0,1.57508679]
[1757944774542,1.00507784,114760.0,114750.0,1.21701]
[1757944774747,1.00507784,114760.0,114750.0,0.38373]
[1757944778646,0.02895426,114760.0,114750.0,0.74122679]
[1757944781340,0.05061426,114760.0,114750.0,0.39633]
[1757944781540,0.40937105,114760.0,114750.0,0.74122679]
[1757944781740,0.75426784,114760.0,114750.0,1.21641]
[1757944781940,0.75426784,114760.0,114750.0,0.38373]
[1757944782439,0.75426784,114760.0,114750.0,0.72862679]
[1757944782638,0.40937105,114760.0,114750.0,0.72862679]
[1757944784542,0.06447426,114760.0,114750.0,0.72862679]
[1757944784741,0.40937105,114760.0,114750.0,0.72862679]
[1757944786552,0.40937105,114760.0,114750.0,0.74122679]
[1757944787451,0.39551105,114760.0,114750.0,0.74122679]
[1757944788248,0.05061426,114760.0,114750.0,0.74122679]
[1757944788449,0.39551105,114760.0,114750.0,0.74122679]
[1757944789054,0.05061426,114760.0,114750.0,0.74122679]
[1757944789251,0.39551105,114760.0,114750.0,0.74122679]
[1757944790545,0.39551105,114760.0,114750.0,2.24122679]
[1757944790751,0.39551105,114760.0,114750.0,1.89633]
[1757944791050,0.39551105,114760.0,114750.0,2.24122679]
[1757944792155,0.05061426,114760.0,114750.0,2.24122679]
[1757944792356,0.39551105,114760.0,114750.0,2.24122679]
[1757944793859,0.05061426,114760.0,114750.0,1.89633]
[1757944794055,0.40823936,114760.0,114750.0,1.88373]
[1757944794558,0.40823936,114760.0,114750.0,1.89742]
[1757944795853,0.40823936,114760.0,114750.0,1.88373]
[1757944796854,0.03491,114750.0,114740.0,0.38345]
[1757944797055,0.03491,114740.0,114730.0,0.38345]
[1757944797259,0.40243936,114740.0,114730.0,1.88345]
[1757944798358,0.40443936,114740.0,114730.0,1.88345]
[1757944798961,0.40443936,114740.0,114730.0,0.38345]
[1757944799660,1.23563936,114740.0,114730.0,0.38345]
[1757944800154,0.89098426,114740.0,114730.0,0.38345]
[1757944800354,0.04671426,114740.0,114730.0,0.7415351]
[1757944800559,0.04671426,114740.0,114730.0,0.39696]
[1757944800756,0.05986426,114740.0,114730.0,0.39696]
[1757944800960,0.02495426,114740.0,114730.0,0.9915351]
[1757944801364,0.04671426,114740.0,114730.0,1.8226151]
[1757944801563,0.04671426,114740.0,114730.0,1.47804]
[1757944801861,0.04771426,114740.0,114730.0,1.47804]
[1757944802056,0.04771426,114740.0,114730.0,0.64696]
[1757944802359,0.04771426,114740.0,114730.0,1.478]
[1757944802854,0.04771426,114740.0,114730.0,0.64696]
[1757944803063,0.04771426,114740.0,114730.0,0.9915351]
[1757944803255,0.02595426,114740.0,114730.0,1.8224951]
[1757944803854,0.003,114740.0,114730.0,1.8224951]
[1757944804058,0.003,114740.0,114730.0,1.909628]
[1757944804755,0.003,114740.0,114730.0,1.8224951]
[1757944805363,0.003,114740.0,114730.0,0.9915351]
[1757944805565,0.003,114740.0,114730.0,1.8224151]
[1757944805766,0.003,114740.0,114730.0,1.4614951]
[1757944806067,0.003,114740.0,114730.0,2.1830951]
[1757944807359,0.003,114740.0,114730.0,1.1023351]
[1757944807665,0.003,114740.0,114730.0,1.9329751]
[1757944808267,0.01615,114740.0,114730.0,1.58836]
[1757944808767,0.01615,114740.0,114730.0,1.1023351]
[1757944809062,0.01615,114740.0,114730.0,0.74425]
[1757944809271,0.6324851,114740.0,114730.0,0.74425]
[1757944809764,0.65543283,114740.0,114730.0,0.74425]
[1757944810367,0.6554313,114740.0,114730.0,0.74425]
[1757944811067,0.4054313,114740.0,114730.0,0.74425]
[1757944811263,0.003,114740.0,114730.0,1.1023351]
[1757944811765,0.003,114740.0,114730.0,1.3523351]
[1757944812162,0.003,114740.0,114730.0,1.58804]
[1757944812364,0.003,114740.0,114730.0,1.9325751]
[1757944812564,0.002,114740.0,114730.0,1.9325751]
[1757944812762,0.0001,114750.0,114730.0,1.9325751]
[1757944812965,0.001,114740.0,114730.0,1.5717751]
[1757944813162,0.001,114740.0,114730.0,1.9325751]
[1757944813768,0.001,114740.0,114730.0,1.1023351]
[1757944813970,0.001,114740.0,114730.0,1.9324951]
[1757944814663,0.001,114740.0,114730.0,1.1023351]
[1757944815164,0.3804851,114740.0,114730.0,0.75776]
[1757944815366,0.6304851,114740.0,114730.0,1.57429]
[1757944815567,0.6294851,114740.0,114730.0,1.57429]
[1757944815765,0.6294851,114740.0,114730.0,1.57425]
[1757944815961,0.6294851,114740.0,114730.0,0.3608]
[1757944815962,0.65243036,114740.0,114730.0,0.3608]
[1757944816162,0.03491,114730.0,114720.0,0.3608]
[1757944816362,0.03491,114720.0,114710.0,0.38345]
[1757944816664,0.02176,114720.0,114710.0,1.89696]
[1757944817166,0.03491,114720.0,114710.0,1.89696]
[1757944817368,0.03491,114720.0,114710.0,2.71337]
[1757944818266,0.02176,114720.0,114710.0,1.89696]
[1757944818466,0.02176,114720.0,114710.0,2.7268]
[1757944818668,0.03291,114720.0,114710.0,2.7268]
[1757944818869,0.03291,114720.0,114710.0,2.7288]
[1757944819565,0.01976,114720.0,114710.0,2.7288]
[1757944819773,0.01976,114720.0,114710.0,2.7318]
[1757944820265,0.0001,114730.0,114720.0,0.03616]
[1757944820467,0.02176,114730.0,114720.0,0.39696]
[1757944821666,0.02176,114730.0,114720.0,0.82510365]
[1757944821858,0.02176,114730.0,114720.0,0.39796]
[1757944822063,0.02176,114730.0,114720.0,0.39896]
[1757944822268,0.28491,114730.0,114720.0,0.38545]
[1757944824271,0.3544577,114730.0,114720.0,0.38545]
[1757944826169,0.3544577,114730.0,114720.0,0.39904]
[1757944826967,0.3413077,114730.0,114720.0,0.39904]
[1757944828169,0.0913077,114730.0,114720.0,0.39904]
[1757944828869,0.02112,114740.0,114730.0,0.03511]
[1757944829073,0.04406603,114740.0,114730.0,1.22511]
[1757944829374,0.02102,114740.0,114730.0,1.22511]
[1757944829575,0.03068505,114750.0,114730.0,1.22511]
[1757944829875,0.06160264,114750.0,114740.0,0.39591]
[1757944830073,0.07545264,114750.0,114740.0,0.38232]
[1757944830272,0.06150264,114750.0,114740.0,0.39591]
[1757944830465,0.03845505,114750.0,114740.0,0.39591]
[1757944831576,0.03845505,114750.0,114740.0,1.22499]
[1757944831778,0.01743505,114750.0,114740.0,1.22499]
[1757944831972,0.01743505,114750.0,114740.0,0.39591]
[1757944832167,0.01943505,114750.0,114740.0,0.39591]
[1757944832369,0.04045505,114750.0,114740.0,1.22487]
[1757944833275,0.04045505,114750.0,114740.0,1.22483]
[1757944834466,0.7325487,114750.0,114740.0,0.38232]
[1757944834673,0.7325487,114750.0,114740.0,0.3608]
[1757944834977,0.75558778,114750.0,114740.0,0.38232]
[1757944835169,0.32744413,114750.0,114740.0,0.38232]
[1757944835968,1.58426778,114750.0,114740.0,0.3608]
[1757944836170,0.03497,114740.0,114730.0,0.3608]
[1757944836379,0.03497,114730.0,114720.0,0.02152]
[1757944836580,0.03497,114730.0,114710.0,0.38106755]
[1757944836581,0.01395,114720.0,114710.0,0.38106755]
[1757944836779,0.46311365,114720.0,114710.0,0.3608]
[1757944836976,0.73615273,114720.0,114710.0,0.3608]
[1757944837977,0.73615273,114720.0,114700.0,0.38232]
[1757944837978,0.03497,114710.0,114700.0,0.38232]
[1757944838185,1.31474413,114710.0,114700.0,0.3608]
[1757944838375,0.03497,114690.0,114680.0,0.38232]
[1757944838577,0.48614085,114690.0,114680.0,0.38232]
[1757944838774,0.03497,114690.0,114680.0,0.38232]
[1757944840172,0.03497,114690.0,114680.0,0.38332]
[1757944840681,0.46311365,114690.0,114680.0,0.38332]
[1757944840978,0.03497,114690.0,114680.0,0.38332]
[1757944841379,0.05795777,114690.0,114680.0,0.3618]
[1757944841574,0.04400777,114690.0,114680.0,0.39691]
[1757944842875,0.05795777,114690.0,114680.0,0.38332]
[1757944843182,0.03497,114690.0,114680.0,0.38332]
[1757944843682,0.03497,114690.0,114680.0,0.02252]
[1757944843880,1.56441278,114690.0,114680.0,0.001]
[1757944844179,0.73609278,114690.0,114680.0,0.001]
[1757944844383,0.04399913,114690.0,114680.0,0.03611]
[1757944844882,0.05794913,114690.0,114680.0,0.02252]
[1757944845676,0.48609278,114690.0,114680.0,0.02252]
[1757944846584,0.48609278,114690.0,114680.0,0.38332]
[1757944846771,1.31433278,114690.0,114680.0,0.38332]